bitfinex/quotes_BTCUSD_20240729
["timestamp","ask_amount","ask_price","bid_price","bid_amount"]
[1722258176913,0.32226073,69976.0,69975.0,0.01262568]
[1722258178463,0.30002003,69976.0,69975.0,0.01262568]
[1722258178694,0.42973897,69976.0,69975.0,0.01262568]
[1722258179097,0.42976053,69976.0,69975.0,0.01262568]
[1722258180124,0.32260403,69976.0,69975.0,0.01262568]
[1722258181080,0.30002003,69976.0,69975.0,0.01262568]
[1722258181451,0.32267893,69976.0,69975.0,0.01262568]
[1722258182871,0.32267893,69976.0,69956.0,0.468]
[1722258182872,0.1469,69966.0,69956.0,0.468]
[1722258183088,0.082,69957.0,69956.0,0.468]
[1722258183303,0.13895236,69957.0,69945.0,0.0633]
[1722258183506,0.04287077,69950.0,69945.0,0.0633]
[1722258183962,0.182,69957.0,69945.0,0.0633]
[1722258184184,0.04285119,69951.0,69945.0,0.0633]
[1722258184391,0.04285119,69950.0,69945.0,0.0633]
[1722258184580,0.04285119,69951.0,69945.0,0.0633]
[1722258185532,0.04285119,69952.0,69945.0,0.0633]
[1722258186522,0.04285119,69953.0,69945.0,0.0633]
[1722258187169,0.04281563,69953.0,69945.0,0.0633]
[1722258187788,0.07496372,69952.0,69945.0,0.0633]
[1722258187959,0.07496372,69951.0,69947.0,0.0614]
[1722258188201,0.04281563,69952.0,69947.0,0.0614]
[1722258188527,0.1,69954.0,69947.0,0.0614]
[1722258188737,0.04281563,69955.0,69947.0,0.0614]
[1722258188738,0.1,69956.0,69947.0,0.0614]
[1722258188932,0.05142359,69957.0,69947.0,0.0614]
[1722258188933,0.07496899,69955.0,69947.0,0.0614]
[1722258189137,0.03215336,69954.0,69947.0,0.0614]
[1722258189566,0.04281563,69955.0,69947.0,0.0614]
[1722258189738,0.03198332,69954.0,69947.0,0.0614]
[1722258189940,0.04281563,69955.0,69947.0,0.0614]
[1722258190119,0.1,69956.0,69947.0,0.0614]
[1722258190324,0.02243205,69953.0,69947.0,0.0614]
[1722258190784,0.14278622,69956.0,69947.0,0.0614]
[1722258190986,0.0319337,69955.0,69947.0,0.0614]
[1722258191435,0.1,69956.0,69947.0,0.0614]
[1722258191655,0.03195927,69955.0,69947.0,0.0614]
[1722258191828,0.05139418,69957.0,69947.0,0.0614]
[1722258191998,0.0319589,69956.0,69947.0,0.0614]
[1722258193256,0.1319589,69956.0,69947.0,0.0614]
[1722258193457,0.1,69956.0,69947.0,0.0614]
[1722258193815,0.02243185,69954.0,69947.0,0.0614]
[1722258194899,0.1,69956.0,69947.0,0.0614]
[1722258195142,0.00860796,69957.0,69947.0,0.0614]
[1722258195315,0.03197313,69956.0,69947.0,0.0614]
[1722258195467,0.14276571,69959.0,69947.0,0.0614]
[1722258195468,0.14276571,69959.0,69954.0,0.07154355]
[1722258195673,0.00869258,69959.0,69956.0,0.0637]
[1722258195858,0.04276571,69970.0,69958.0,0.0637]
[1722258196056,0.04276571,69973.0,69958.0,0.0637]
[1722258196303,0.03195233,69972.0,69958.0,0.0597]
[1722258196515,0.286,69974.0,69958.0,0.0597]
[1722258196728,0.04031456,69973.0,69959.0,0.0824]
[1722258196894,0.031816,69972.0,69959.0,0.0824]
[1722258197099,0.286,69974.0,69959.0,0.0824]
[1722258197300,0.03157195,69973.0,69959.0,0.0824]
[1722258197565,0.004,69970.0,69959.0,0.0824]
[1722258197999,0.33724455,69974.0,69959.0,0.0824]
[1722258198224,0.13157251,69973.0,69959.0,0.0824]
[1722258198376,0.02242745,69968.0,69962.0,0.0803]
[1722258198781,0.02242745,69968.0,69963.0,0.14309939]
[1722258198984,0.02242745,69968.0,69964.0,0.0803]
[1722258199329,0.00850197,69974.0,69966.0,0.0645]
[1722258199518,0.00850197,69974.0,69964.0,0.21464294]
[1722258199519,0.00850197,69974.0,69968.0,0.0645]
[1722258199723,0.00084,69981.0,69969.0,0.0803]
[1722258200037,0.00936602,69981.0,69970.0,0.0645]
[1722258202067,0.2066,69978.0,69970.0,0.0645]
[1722258202221,0.2066,69972.0,69953.0,0.868]
[1722258202406,0.2066,69972.0,69955.0,0.0627]
[1722258202611,0.2066,69972.0,69955.0,0.20579939]
[1722258202836,0.1,69971.0,69957.0,0.0783]
[1722258203092,0.1,69971.0,69958.0,0.0627]
[1722258204338,0.1,69971.0,69970.0,0.000924]
[1722258205269,0.12242691,69971.0,69970.0,0.000924]
[1722258205718,0.1533554,69971.0,69970.0,0.000924]
[1722258205936,0.44532565,69971.0,69970.0,0.000924]
[1722258206137,0.2066,69959.0,69958.0,0.004]
[1722258206339,0.3066,69959.0,69958.0,0.004]
[1722258206930,0.32902944,69959.0,69958.0,0.004]
[1722258207330,0.3066,69959.0,69958.0,0.004]
[1722258208107,0.3066,69959.0,69954.0,0.0631]
[1722258209381,0.3066,69959.0,69958.0,0.005]
[1722258209824,0.3066,69959.0,69954.0,0.0631]
[1722258210199,0.1,69959.0,69954.0,0.0681]
[1722258210519,0.02242952,69958.0,69954.0,0.0681]
[1722258211600,0.27078232,69965.0,69954.0,0.0631]
[1722258211601,0.14278821,69964.0,69954.0,0.0631]
[1722258212044,0.1,69964.0,69954.0,0.0631]
[1722258212236,0.1,69964.0,69954.0,0.0691]
[1722258215203,0.1,69964.0,69954.0,1.0631]
[1722258215621,0.1,69964.0,69954.0,1.0641]
[1722258215892,0.1,69964.0,69954.0,1.0701]
[1722258216092,0.02242916,69962.0,69954.0,1.0701]
[1722258216492,0.1,69964.0,69954.0,1.0701]
[1722258217658,0.1,69964.0,69954.0,1.0691]
[1722258217858,0.1,69964.0,69954.0,1.0631]
[1722258218058,0.1,69964.0,69954.0,1.0661]
[1722258218581,0.02242916,69962.0,69954.0,1.0631]
[1722258218924,0.02242916,69962.0,69954.0,1.0641]
[1722258219134,0.1,69964.0,69954.0,1.0641]
[1722258219352,0.1,69964.0,69954.0,1.0631]
[1722258221196,0.1,69964.0,69954.0,1.0661]
[1722258221563,0.14281165,69964.0,69954.0,1.0661]
[1722258221772,0.14281165,69964.0,69954.0,1.0631]
[1722258221978,0.14281276,69964.0,69954.0,1.0641]
[1722258222396,0.02242916,69962.0,69954.0,1.0651]
[1722258222590,0.14281276,69964.0,69954.0,1.0641]
[1722258222820,0.14281276,69964.0,69954.0,1.0631]
[1722258223641,0.14281276,69964.0,69954.0,1.0641]
[1722258223988,0.14281276,69964.0,69954.0,1.0631]
[1722258224388,0.14281276,69964.0,69954.0,1.0651]
[1722258224586,0.03101038,69963.0,69954.0,1.0651]
[1722258225299,0.14281638,69964.0,69954.0,1.0651]
[1722258225441,0.03105255,69963.0,69954.0,1.0641]
[1722258225644,0.02242927,69961.0,69954.0,1.0631]
[1722258225873,0.02242927,69961.0,69954.0,1.0641]
[1722258226077,0.2066,69958.0,69954.0,1.0661]
[1722258226282,0.2876,69958.0,69954.0,1.003]
[1722258226482,0.03107439,69957.0,69954.0,1.003]
[1722258226682,0.10824396,69957.0,69954.0,1.003]
[1722258226884,0.06542758,69956.0,69954.0,1.001]
[1722258227043,0.04281638,69957.0,69954.0,1.01]
[1722258227249,0.0826,69955.0,69954.0,1.01]
[1722258227447,0.0826,69955.0,69954.0,1.001]
[1722258227847,0.14790566,69955.0,69954.0,1.0]
[1722258228162,0.11353943,69955.0,69954.0,1.0]
[1722258228361,0.11353934,69955.0,69954.0,1.0]
[1722258228909,0.11695242,69955.0,69954.0,1.0]
[1722258229203,0.24085242,69955.0,69954.0,1.00197305]
[1722258229431,0.22893048,69955.0,69954.0,1.00197305]
[1722258229904,0.25990809,69955.0,69954.0,1.00197305]
[1722258230105,0.25990809,69955.0,69954.0,0.98997305]
[1722258230624,0.14744952,69961.0,69954.0,0.98997305]
[1722258230625,0.00846428,69957.0,69954.0,1.13307244]
[1722258230851,0.00846428,69957.0,69956.0,0.1397]
[1722258230992,0.04282003,69972.0,69960.0,0.1418]
[1722258231190,0.0015542,69971.0,69965.0,0.07154355]
[1722258231391,0.00852504,69974.0,69965.0,0.07154355]
[1722258231599,0.04282003,69975.0,69965.0,0.07154355]
[1722258231600,0.03110959,69973.0,69965.0,0.07154355]
[1722258231804,0.03110959,69973.0,69961.0,0.0644]
[1722258231805,0.04281908,69974.0,69961.0,0.0644]
[1722258232004,0.03033308,69973.0,69961.0,0.0644]
[1722258232634,0.04281908,69975.0,69961.0,0.0644]
[1722258232863,0.14281908,69976.0,69961.0,0.0644]
[1722258233042,0.02552202,69975.0,69963.0,0.0645]
[1722258233434,0.04281908,69976.0,69963.0,0.0645]
[1722258234222,0.02242568,69973.0,69963.0,0.0645]
[1722258234814,0.02242568,69973.0,69963.0,0.0635]
[1722258234964,0.04281532,69976.0,69963.0,0.0635]
[1722258235235,0.06858722,69975.0,69963.0,0.0635]
[1722258235407,0.04281532,69975.0,69963.0,0.0635]
[1722258235556,0.04281532,69975.0,69963.0,0.0665]
[1722258235765,0.00858556,69977.0,69975.0,0.0825]
[1722258235976,0.00084,69981.0,69975.0,0.0825]
[1722258237728,0.00084,69981.0,69976.0,0.0645]
[1722258238254,0.0224229,69980.0,69976.0,0.0645]
[1722258238493,0.00084,69981.0,69976.0,0.0645]
[1722258241229,0.00084,69981.0,69976.0,0.0715]
[1722258241429,0.00084,69981.0,69977.0,0.0769]
[1722258242009,0.00084,69981.0,69978.0,0.0635]
[1722258244367,0.00084,69981.0,69978.0,0.0705]
[1722258244504,0.00084,69981.0,69978.0,0.0795]
[1722258245225,0.00084,69981.0,69978.0,0.0725]
[1722258245351,0.00084,69981.0,69978.0,0.0805]
[1722258245809,0.02326263,69981.0,69978.0,0.0805]
[1722258246035,0.0087247,69987.0,69978.0,0.0805]
[1722258246036,0.0087247,69987.0,69986.0,0.3]
[1722258246229,0.85131791,69999.0,69998.0,0.4396]
[1722258246560,0.85131791,69999.0,69992.0,0.1461]
[1722258247129,0.86003851,69999.0,69992.0,0.1461]
[1722258247740,0.86003851,69999.0,69993.0,0.14309939]
[1722258248323,0.86003851,69999.0,69992.0,0.1461]
[1722258248953,0.86003851,69999.0,69998.0,0.4394]
[1722258251300,0.86003851,69999.0,69998.0,1.02508239]
[1722258251783,0.86003851,69999.0,69998.0,0.59649939]
[1722258251955,0.86003851,69999.0,69998.0,7.27844739]
[1722258252367,0.86003851,69999.0,69998.0,7.56416939]
[1722258252618,0.86003851,69999.0,69998.0,7.61416939]
[1722258252821,0.86003851,69999.0,69998.0,7.56416939]
[1722258253401,0.80713132,69999.0,69998.0,7.99989139]
[1722258253719,0.80713132,69999.0,69998.0,8.11589139]
[1722258254290,0.80713132,69999.0,69998.0,7.77816939]
[1722258254857,0.80713132,69999.0,69998.0,7.82816939]
[1722258255262,0.80713132,69999.0,69998.0,8.11389139]
[1722258255718,0.80713132,69999.0,69998.0,8.09989139]
[1722258255922,0.80713132,69999.0,69998.0,8.10189139]
[1722258256085,0.80713132,69999.0,69998.0,8.21589139]
[1722258256472,0.80713132,69999.0,69998.0,8.20189139]
[1722258256960,0.74053132,69999.0,69998.0,8.48761339]
[1722258257159,0.74053132,69999.0,69998.0,8.71711339]
[1722258257803,0.67393132,69999.0,69998.0,8.78919493]
[1722258258000,0.67393132,69999.0,69998.0,9.07491693]
[1722258258708,0.65643132,69999.0,69998.0,9.07490716]
[1722258259095,0.65643132,69999.0,69998.0,8.95623539]
[1722258259339,0.65643132,69999.0,69998.0,9.07490547]
[1722258259693,0.65643132,69999.0,69998.0,9.06090547]
[1722258260098,0.65643132,69999.0,69998.0,9.07490547]
[1722258260612,0.65643132,69999.0,69998.0,8.75318347]
[1722258260813,0.65643132,69999.0,69998.0,8.78918347]
[1722258261220,0.65643132,69999.0,69998.0,8.80318347]
[1722258262255,0.65643132,69999.0,69998.0,8.80318067]
[1722258262631,0.63401791,69999.0,69998.0,8.80318067]
[1722258262839,0.63401791,69999.0,69998.0,9.08890267]
[1722258263089,0.63401791,69999.0,69998.0,8.80318067]
[1722258263486,0.63401791,69999.0,69998.0,9.14823535]
[1722258263847,0.63401791,69999.0,69998.0,8.86251335]
[1722258264027,0.63401791,69999.0,69998.0,9.14823535]
[1722258265313,0.63401791,69999.0,69998.0,9.29656488]
[1722258265524,0.63401791,69999.0,69998.0,9.23722827]
[1722258265725,0.63401791,69999.0,69998.0,9.29655995]
[1722258266136,0.63401791,69999.0,69998.0,8.90317704]
[1722258266340,0.65642493,69999.0,69998.0,8.96250886]
[1722258266489,0.65642493,69999.0,69998.0,8.96251089]
[1722258266696,0.65642493,69999.0,69998.0,8.90317704]
[1722258266892,0.65642493,69999.0,69998.0,8.96251145]
[1722258267326,0.65642493,69999.0,69998.0,8.90317704]
[1722258267327,0.63401791,69999.0,69998.0,8.90317704]
[1722258267564,0.63401791,69999.0,69998.0,8.96251283]
[1722258267782,0.63401791,69999.0,69998.0,9.11085059]
[1722258267947,0.63401791,69999.0,69998.0,9.11085353]
[1722258268299,0.63401791,69999.0,69998.0,9.46435353]
[1722258268446,0.63401791,69999.0,69998.0,9.47835353]
[1722258268810,0.63401791,69999.0,69998.0,9.65635999]
[1722258269930,0.63401791,69999.0,69998.0,9.94207999]
[1722258270135,0.63401791,69999.0,69998.0,9.56057999]
[1722258270518,0.65642497,69999.0,69998.0,9.56057999]
[1722258271384,0.65642497,69999.0,69998.0,9.86030199]
[1722258271586,0.65642497,69999.0,69998.0,9.56362871]
[1722258271783,0.65642497,69999.0,69998.0,9.51524239]
[1722258272030,0.65797917,69999.0,69998.0,3.32121192]
[1722258272203,0.65797917,69999.0,69998.0,3.14320832]
[1722258272741,0.65797917,69999.0,69998.0,3.14413232]
[1722258272919,0.65797917,69999.0,69998.0,3.21567587]
[1722258274537,0.65797917,69999.0,69998.0,3.39367947]
[1722258274740,0.65797917,69999.0,69998.0,2.99367947]
[1722258274941,0.65797917,69999.0,69998.0,3.33434588]
[1722258275140,0.65797917,69999.0,69998.0,3.76118252]
[1722258275358,0.65797917,69999.0,69998.0,2.86897816]
[1722258275534,0.65797917,69999.0,69998.0,3.41614152]
[1722258275734,0.65797917,69999.0,69998.0,3.47547977]
[1722258275935,0.65797917,69999.0,69998.0,3.76120177]
[1722258276734,0.65642497,69999.0,69998.0,3.76969755]
[1722258277173,0.65755233,69999.0,69998.0,3.76969755]
[1722258277388,0.65755233,69999.0,69998.0,3.76969286]
[1722258277589,0.65755233,69999.0,69998.0,3.76119844]
[1722258277995,0.65755233,69999.0,69998.0,3.7018469]
[1722258278215,0.65642497,69999.0,69998.0,3.76118182]
[1722258278395,0.65797917,69999.0,69998.0,3.76118182]
[1722258278619,0.65642497,69999.0,69998.0,3.76118182]
[1722258278746,0.65642497,69999.0,69998.0,4.04690382]
[1722258278747,0.65770715,69999.0,69998.0,4.04690382]
[1722258278950,0.65642497,69999.0,69998.0,4.04690382]
[1722258279803,0.63401791,69999.0,69998.0,4.04690382]
[1722258280239,0.63489334,69999.0,69998.0,4.04690382]
[1722258280909,0.63401791,69999.0,69998.0,4.04690382]
[1722258281082,0.63401791,69999.0,69998.0,3.75022919]
[1722258281465,0.63401791,69999.0,69998.0,4.04689374]
[1722258283251,0.65642488,69999.0,69998.0,4.04689374]
[1722258283607,0.65642488,69999.0,69998.0,4.14689374]
[1722258283820,0.65642488,69999.0,69998.0,4.14689042]
[1722258284402,0.65642488,69999.0,69998.0,4.08755718]
[1722258284604,0.65642488,69999.0,69998.0,4.18894415]
[1722258284803,0.65642488,69999.0,69998.0,3.83294468]
[1722258285011,0.65642488,69999.0,69998.0,4.14689042]
[1722258285432,0.65642488,69999.0,69998.0,4.55275909]
[1722258285645,0.65642488,69999.0,69998.0,4.97877353]
[1722258286414,0.65642488,69999.0,69998.0,4.66190473]
[1722258286877,0.65642488,69999.0,69998.0,4.66190246]
[1722258287338,0.65642488,69999.0,69998.0,4.97876989]
[1722258287575,0.65642488,69999.0,69998.0,4.66190071]
[1722258287737,0.65642488,69999.0,69998.0,4.76724946]
[1722258288057,0.65642488,69999.0,69998.0,4.91557978]
[1722258288558,0.65642488,69999.0,69998.0,4.18524969]
[1722258288762,0.65642488,69999.0,69998.0,4.26957882]
[1722258289778,0.65642488,69999.0,69998.0,4.29055955]
[1722258289984,0.63401791,69999.0,69998.0,4.29055955]
[1722258290564,0.63401791,69999.0,69998.0,4.18524969]
[1722258290769,0.63401791,69999.0,69998.0,3.91824582]
[1722258290969,0.63401791,69999.0,69998.0,4.18523538]
[1722258291166,12.46236496,70000.0,69999.0,2.009167]
[1722258291465,12.46236496,70000.0,69999.0,4.56512969]
[1722258291786,12.46236496,70000.0,69999.0,4.56309608]
[1722258292888,12.46236496,70000.0,69999.0,4.57709608]
[1722258293475,12.46236496,70000.0,69999.0,4.67558958]
[1722258293682,12.46236496,70000.0,69999.0,4.88590476]
[1722258293897,12.04192459,70000.0,69999.0,7.23134161]
[1722258294101,12.04192459,70000.0,69999.0,9.07318]
[1722258294102,6.03872061,70000.0,69999.0,9.07318]
[1722258294326,5.36538233,70000.0,69999.0,11.44679513]
[1722258294532,4.99814567,70000.0,69999.0,12.81033426]
[1722258294706,4.83614567,70000.0,69999.0,13.39417531]
[1722258294906,4.83614567,70000.0,69999.0,13.4831683]
[1722258295153,4.71944553,70000.0,69999.0,13.36750864]
[1722258295366,4.69087453,70000.0,69999.0,13.36750864]
[1722258295820,4.61359457,70000.0,69999.0,13.37990864]
[1722258296017,4.45159457,70000.0,69999.0,13.37890864]
[1722258296217,4.09457957,70000.0,69999.0,13.18542919]
[1722258296425,3.95746893,70000.0,69999.0,13.05213875]
[1722258296635,3.49934362,70000.0,69999.0,13.24064804]
[1722258296879,3.17534362,70000.0,69999.0,13.54263723]
[1722258297083,3.17534362,70000.0,69999.0,13.38615016]
[1722258297283,3.03248862,70000.0,69999.0,12.40620044]
[1722258297514,3.03248862,70000.0,69999.0,12.73138357]
[1722258297758,3.03248862,70000.0,69999.0,12.80535339]
[1722258298070,0.00017532,70018.0,69999.0,12.80535339]
[1722258298071,0.1506,70071.0,70060.0,0.0834]
[1722258298238,0.1506,70071.0,70042.0,0.142771]
[1722258298239,0.63516131,70061.0,70037.0,0.3]
[1722258298474,0.2059,70038.0,70036.0,0.1]
[1722258298687,0.2059,70038.0,70037.0,0.28556]
[1722258298900,0.2059,70038.0,70037.0,1.08544755]
[1722258299114,0.2059,70038.0,70037.0,1.20408143]
[1722258299317,0.2059,70038.0,70037.0,1.06161782]
[1722258299536,0.2059,70038.0,70037.0,0.77573743]
[1722258299674,0.2059,70038.0,70037.0,0.35710355]
[1722258300510,0.2059,70038.0,70037.0,0.64298394]
[1722258300715,0.2059,70044.0,70043.0,0.928307]
[1722258300914,0.3468,70044.0,70043.0,0.78586839]
[1722258301556,0.3468,70044.0,70037.0,0.35710355]
[1722258301557,0.0767,70043.0,70037.0,0.35710355]
[1722258301758,0.00869638,70057.0,70037.0,0.35710355]
[1722258301759,0.0767,70041.0,70037.0,0.35710355]
[1722258301931,0.0767,70039.0,70037.0,0.35710355]
[1722258302142,0.1402,70038.0,70037.0,0.65710355]
[1722258302537,0.1402,70038.0,70037.0,0.79988455]
[1722258302791,0.1402,70038.0,70037.0,1.22854694]
[1722258302991,0.1402,70038.0,70037.0,1.51410994]
[1722258303771,0.1402,70038.0,70037.0,1.79967294]
[1722258304534,0.18543598,70084.0,70037.0,1.79967294]
[1722258304535,0.1506,70076.0,70057.0,0.3]
[1722258304667,0.0015542,70069.0,70064.0,0.07154355]
[1722258304860,0.0015542,70069.0,70068.0,0.07154355]
[1722258305072,0.0015542,70069.0,70057.0,0.3]
[1722258305384,0.15114939,70070.0,70057.0,0.3]
[1722258305385,0.14,70068.0,70064.0,0.07154355]
[1722258305584,0.15114939,70070.0,70064.0,0.07154355]
[1722258305585,0.1415542,70069.0,70064.0,0.07154355]
[1722258305786,0.0624,70063.0,70057.0,0.3]
[1722258305964,0.14465359,70069.0,70056.0,0.02044291]
[1722258305965,0.0776,70065.0,70056.0,0.02044291]
[1722258306167,0.0621,70061.0,70050.0,0.3]
[1722258306357,0.082,70058.0,70048.0,0.07154355]
[1722258306593,0.082,70058.0,70046.0,0.1]
[1722258306594,0.0621,70057.0,70047.0,0.07154355]
[1722258306792,0.082,70056.0,70047.0,0.07154355]
[1722258307050,0.29369939,70069.0,70047.0,0.07154355]
[1722258307051,0.082,70054.0,70047.0,0.07154355]
[1722258307258,0.0621,70051.0,70042.0,0.3]
[1722258307407,0.0623,70049.0,70043.0,0.26111]
[1722258307607,0.0776,70046.0,70043.0,0.24045525]
[1722258307812,0.0623,70045.0,70043.0,0.24045525]
[1722258308024,0.1414542,70044.0,70043.0,0.24045525]
[1722258308746,0.1399,70044.0,70043.0,0.24045525]
[1722258309470,0.1352,70044.0,70043.0,0.24045525]
[1722258309901,0.0625,70059.0,70049.0,0.1]
[1722258310052,0.0625,70059.0,70054.0,0.07154355]
[1722258310255,0.0625,70059.0,70057.0,0.3]
[1722258311489,0.0649,70069.0,70057.0,0.3]
[1722258311690,0.0649,70069.0,70066.0,0.07154355]
[1722258311909,0.0015542,70068.0,70066.0,0.07154355]
[1722258312162,0.0649,70069.0,70065.0,0.3]
[1722258312353,0.0649,70069.0,70066.0,0.07154355]
[1722258312354,0.0791,70067.0,70066.0,0.07154355]
[1722258313355,0.0791,70067.0,70065.0,0.3]
[1722258313562,0.0015542,70066.0,70058.0,0.3]
[1722258313748,0.0015542,70066.0,70062.0,0.07154355]
[1722258315827,0.0015542,70066.0,70062.0,0.21427355]
[1722258316014,0.0015542,70066.0,70064.0,0.142726]
[1722258316217,0.0791,70067.0,70066.0,0.3]
[1722258317874,0.0791,70067.0,70062.0,0.014]
[1722258318079,0.01650449,70070.0,70054.0,0.07154355]
[1722258318080,0.0653,70065.0,70054.0,0.07154355]
[1722258318403,0.0821542,70064.0,70055.0,0.33057]
[1722258318776,0.02239297,70062.0,70059.0,0.3]
[1722258319143,0.02239297,70062.0,70055.0,0.33057]
[1722258319348,0.33648,70068.0,70055.0,0.20862504]
[1722258319556,0.1,70068.0,70062.0,0.014]
[1722258319757,0.01650449,70070.0,70062.0,0.014]
[1722258319964,0.01650449,70070.0,70057.0,0.21428355]
[1722258320204,0.01650449,70070.0,70057.0,0.07154355]
[1722258320560,0.01650449,70070.0,70065.0,0.07154355]
[1722258320930,0.01650449,70070.0,70057.0,0.07154355]
[1722258321139,0.14309939,70069.0,70058.0,0.07154355]
[1722258321342,0.1,70068.0,70055.0,0.20862504]
[1722258321551,0.001,70065.0,70055.0,0.20862504]
[1722258321763,0.14309939,70064.0,70055.0,0.14984913]
[1722258321976,0.14309939,70064.0,70055.0,0.09648913]
[1722258321977,0.0812,70061.0,70055.0,0.09648913]
[1722258322174,0.0506,70060.0,70055.0,0.09648913]
[1722258322382,0.0506,70058.0,70054.0,0.014]
[1722258322582,0.0506,70058.0,70054.0,0.00099331]
[1722258322877,0.0506,70056.0,70034.0,0.37154355]
[1722258323081,0.0506,70054.0,70033.0,0.1]
[1722258323303,0.0506,70052.0,70031.0,0.42926131]
[1722258323533,0.0506,70050.0,70031.0,0.42926131]
[1722258323714,0.0506,70048.0,70031.0,0.42926131]
[1722258323914,0.19369939,70048.0,70032.0,0.28555]
[1722258324065,0.19369939,70048.0,70034.0,0.3]
[1722258324271,0.19369939,70048.0,70035.0,0.28557]
[1722258324272,0.14309939,70047.0,70035.0,0.28557]
[1722258324474,0.0506,70048.0,70035.0,0.28557]
[1722258324676,0.19369939,70048.0,70035.0,0.28557]
[1722258325060,0.1,70050.0,70035.0,0.28557]
[1722258325061,0.23648,70046.0,70035.0,0.28557]
[1722258325267,0.0506,70040.0,70035.0,0.26567]
[1722258325487,0.0805,70038.0,70035.0,0.26567]
[1722258325732,0.1311,70036.0,70035.0,0.26567]
[1722258325934,0.2679026,70036.0,70035.0,0.26567]
[1722258326469,0.12480321,70036.0,70035.0,0.25357]
[1722258327251,0.14720461,70036.0,70035.0,0.25357]
[1722258327460,0.14720461,70036.0,70035.0,0.12275001]
[1722258327461,0.390304,70036.0,70035.0,0.12275001]
[1722258327860,0.3689026,70036.0,70035.0,0.11402001]
[1722258328237,0.04265938,70054.0,70035.0,0.11402001]
[1722258328238,0.03753313,70049.0,70044.0,0.285533]
[1722258328454,0.00805,70070.0,70036.0,0.0618]
[1722258328455,0.00805,70070.0,70069.0,0.7118]
[1722258328660,0.00805,70070.0,70069.0,1.43218]
[1722258328875,0.00805,70070.0,70069.0,0.95898213]
[1722258329070,0.00805,70070.0,70069.0,0.1]
[1722258329276,0.00805,70070.0,70069.0,0.6]
[1722258329499,0.00805,70070.0,70069.0,0.978148]
[1722258329700,0.00805,70070.0,70069.0,0.5]
[1722258330218,0.00805,70070.0,70069.0,0.15]
[1722258330416,0.00805,70070.0,70069.0,0.2]
[1722258330615,0.00805,70070.0,70069.0,0.34309939]
[1722258330824,0.00805,70070.0,70069.0,0.2]
[1722258331034,0.00805,70070.0,70069.0,0.211]
[1722258331035,0.00905,70070.0,70069.0,0.211]
[1722258331253,0.03143755,70070.0,70069.0,0.211]
[1722258331652,0.03043755,70070.0,70069.0,0.2]
[1722258331873,0.03143755,70070.0,70069.0,0.102]
[1722258332074,0.03143755,70070.0,70069.0,0.113]
[1722258332075,0.03948641,70070.0,70069.0,0.113]
[1722258332277,0.03948641,70070.0,70069.0,0.063]
[1722258332475,0.03243755,70070.0,70069.0,0.113]
[1722258332761,0.03243755,70070.0,70069.0,0.063]
[1722258332762,0.03948641,70070.0,70069.0,0.063]
[1722258332958,0.03948641,70070.0,70069.0,0.34881539]
[1722258333321,0.03243755,70070.0,70069.0,0.49881539]
[1722258333524,0.03243755,70070.0,70069.0,0.25609939]
[1722258333763,0.03243755,70070.0,70069.0,0.113]
[1722258334167,0.03143755,70070.0,70069.0,0.102]
[1722258334545,0.03847578,70070.0,70069.0,0.102]
[1722258335064,0.03947578,70070.0,70069.0,0.114]
[1722258335266,0.01508823,70070.0,70069.0,0.1]
[1722258335394,0.01608823,70070.0,70069.0,0.112]
[1722258335595,0.01005,70070.0,70069.0,0.126]
[1722258335801,0.01005,70070.0,70069.0,0.114]
[1722258335802,0.00905,70070.0,70069.0,0.114]
[1722258336328,0.00905,70070.0,70069.0,0.71879094]
[1722258336329,0.01005,70070.0,70069.0,0.71879094]
[1722258336525,0.01005,70070.0,70069.0,1.81378449]
[1722258336729,0.01005,70070.0,70069.0,1.86578449]
[1722258337116,0.01005,70070.0,70069.0,2.09921649]
[1722258337383,0.01005,70070.0,70069.0,1.81378449]
[1722258337516,0.01005,70070.0,70069.0,1.86378449]
[1722258337717,0.01005,70070.0,70069.0,2.14921649]
[1722258338034,0.00905,70070.0,70069.0,2.13921649]
[1722258338238,0.00905,70070.0,70069.0,2.43864649]
[1722258338408,0.03143508,70070.0,70069.0,2.42464649]
[1722258338820,0.00905,70070.0,70069.0,2.43864649]
[1722258339215,0.00905,70070.0,70069.0,2.02967217]
[1722258339468,0.00905,70070.0,70069.0,1.54977739]
[1722258339616,0.00905,70070.0,70069.0,1.93720939]
[1722258339815,0.0753,70096.0,70095.0,0.1]
[1722258340060,0.0641,70107.0,70106.0,0.05]
[1722258340287,0.01804,70130.0,70083.0,0.17154355]
[1722258340288,0.0641,70114.0,70113.0,0.1]
[1722258340445,0.0641,70114.0,70113.0,0.33525]
[1722258340744,0.1394,70114.0,70113.0,0.33525]
[1722258340946,0.1394,70114.0,70113.0,0.28525]
[1722258341148,0.0753,70124.0,70113.0,0.28525]
[1722258341351,0.0753,70124.0,70116.0,0.05]
[1722258341573,0.01091593,70119.0,70116.0,0.05]
[1722258341780,0.03237766,70117.0,70116.0,0.05]
[1722258342483,0.03237766,70117.0,70116.0,0.35]
[1722258342484,0.011,70117.0,70116.0,0.35]
[1722258342687,0.011,70117.0,70116.0,0.05]
[1722258347151,0.01,70117.0,70116.0,0.05]
[1722258348568,0.01,70117.0,70113.0,0.28525]
[1722258348569,0.15309939,70117.0,70113.0,0.23255395]
[1722258348771,0.07154355,70114.0,70088.0,0.52926131]
[1722258348979,0.07154355,70114.0,70098.0,0.05]
[1722258348980,0.14309939,70113.0,70098.0,0.05]
[1722258349187,0.1,70112.0,70097.0,0.05]
[1722258349353,0.14309939,70111.0,70098.0,0.05]
[1722258349556,0.1,70110.0,70099.0,0.28529]
[1722258349736,0.1528303,70109.0,70099.0,0.28529]
[1722258350147,0.0223795,70107.0,70099.0,0.28529]
[1722258350348,0.00971765,70106.0,70099.0,0.28529]
[1722258350963,0.0223795,70107.0,70099.0,0.28529]
[1722258350964,0.07154355,70114.0,70099.0,0.28529]
[1722258351121,0.14309939,70113.0,70099.0,0.28529]
[1722258351324,0.14309939,70113.0,70105.0,0.05]
[1722258351325,0.00974417,70112.0,70105.0,0.05]
[1722258351491,0.22897939,70111.0,70106.0,0.28528]
[1722258351679,0.00973533,70110.0,70106.0,0.28528]